bitfinex/quotes_SOLUSD_20250806
["timestamp","ask_amount","ask_price","bid_price","bid_amount"]
[1754448247403,8.84442603,163.21,163.2,49.00745098]
[1754448248120,8.84442603,163.21,163.2,138.10745097]
[1754448248304,8.84442603,163.21,163.2,146.58180184]
[1754448248621,8.84442603,163.21,163.2,147.27180184]
[1754448249126,4.7175,163.21,163.2,147.41396341]
[1754448250107,1e-08,163.21,163.2,170.99452985]
[1754448250310,1e-08,163.23,163.22,41.24837714]
[1754448250522,1e-08,163.23,163.22,93.19539802]
[1754448250828,1e-08,163.23,163.22,93.88539802]
[1754448251011,1e-08,163.23,163.22,100.01209817]
[1754448251206,4.12441956,163.28,163.24,0.14216157]
[1754448251406,4.12245375,163.29,163.27,8.47435087]
[1754448251620,0.72,163.3,163.28,42.86]
[1754448251834,4.12223289,163.29,163.28,51.33435087]
[1754448252124,4.12223289,163.3,163.28,51.33435087]
[1754448252431,4.12223289,163.29,163.28,51.33435087]
[1754448252606,0.7827195,163.31,163.28,52.02435087]
[1754448252809,0.7827195,163.31,163.3,34.61651244]
[1754448253005,0.7827195,163.31,163.3,83.60021115]
[1754448253207,0.72,163.37,163.31,0.14216157]
[1754448253426,4.84223289,163.37,163.35,8.47435087]
[1754448253626,0.72,163.37,163.36,42.86]
[1754448254000,4.84223289,163.37,163.36,42.86]
[1754448254200,0.72,163.37,163.36,42.86]
[1754448254400,9.19435087,163.37,163.36,42.86]
[1754448254822,19.43771794,163.37,163.34,42.86]
[1754448255010,8.47435087,163.35,163.34,42.86]
[1754448255203,13.31658376,163.35,163.34,42.86]
[1754448256326,13.31658376,163.35,163.29,103.69814477]
[1754448256527,9.19435087,163.34,163.29,8.47435087]
[1754448256713,0.72,163.34,163.3,51.31435087]
[1754448256917,12.59658376,163.35,163.3,52.00435087]
[1754448257228,8.47435087,163.35,163.3,58.12795233]
[1754448257429,0.72,163.33,163.3,48.96360146]
[1754448257831,9.19435087,163.33,163.3,48.96360146]
[1754448258338,0.72,163.33,163.3,48.96360146]
[1754448258630,0.7,163.33,163.3,48.96360146]
[1754448259222,8.47435087,163.34,163.3,49.65360146]
[1754448259563,32.90334128,163.4,163.31,9.16435087]
[1754448259836,4.1007927,163.39,163.32,42.84]
[1754448260029,8.47435087,163.36,163.32,42.84]
[1754448260208,8.47435087,163.34,163.32,131.93999999]
[1754448260413,8.47435087,163.33,163.32,131.93999999]
[1754448261127,9.19435087,163.34,163.32,131.93999999]
[1754448262215,9.19435087,163.33,163.32,131.93999999]
[1754448263043,8.47435087,163.33,163.32,131.93999999]
[1754448263651,8.47435087,163.34,163.32,131.93999999]
[1754448264323,4.81854476,163.35,163.32,131.93999999]
[1754448264521,8.47435087,163.34,163.32,131.93999999]
[1754448265216,9.19435087,163.34,163.32,131.93999999]
[1754448265838,9.19435087,163.34,163.32,42.84]
[1754448266543,8.47435087,163.34,163.32,42.84]
[1754448267244,0.03,163.37,163.33,0.69]
[1754448267417,8.47435087,163.36,163.34,42.84]
[1754448267841,0.03,163.37,163.35,0.69]
[1754448268049,8.50435087,163.37,163.36,42.84]
[1754448269220,0.03,163.37,163.36,42.84]
[1754448269429,0.03,163.37,163.36,43.53]
[1754448269725,0.03,163.37,163.36,42.84]
[1754448270723,9.22435087,163.37,163.36,42.84]
[1754448271416,15.34542573,163.37,163.36,42.84]
[1754448271615,13.31900873,163.37,163.36,42.84]
[1754448272922,19.44008359,163.37,163.36,42.84]
[1754448273449,19.44008359,163.37,163.32,0.69]
[1754448273751,8.47435087,163.33,163.3,6.81336905]
[1754448274052,8.47435087,163.33,163.31,42.84]
[1754448274554,8.47435087,163.33,163.31,43.55]
[1754448274957,8.47435087,163.33,163.31,43.61]
[1754448275452,8.47435087,163.34,163.31,43.61]
[1754448275624,8.47435087,163.36,163.32,0.71]
[1754448275828,8.47435087,163.34,163.33,43.55]
[1754448276028,8.47435087,163.34,163.33,42.84]
[1754448277630,14.59654996,163.34,163.33,42.84]
[1754448277831,15.25654996,163.34,163.33,42.84]
[1754448278453,19.35594191,163.34,163.31,0.06]
[1754448278648,8.47435087,163.32,163.31,0.06]
[1754448279356,9.13435087,163.32,163.31,0.06]
[1754448280167,19.35669163,163.32,163.31,0.06]
[1754448280375,13.23374282,163.32,163.31,0.06]
[1754448280557,12.57374282,163.32,163.31,0.06]
[1754448280754,18.69669163,163.32,163.31,0.06]
[1754448280955,19.35669163,163.32,163.31,0.06]
[1754448282473,41.10621557,163.3,163.29,0.06]
[1754448282664,15.10621557,163.29,163.21,0.71]
[1754448282851,67.28623986,163.3,163.21,0.71]
[1754448282852,8.47435087,163.23,163.22,42.84]
[1754448283053,8.47435087,163.23,163.22,43.55]
[1754448283770,8.47435087,163.23,163.22,42.84]
[1754448283946,8.47435087,163.23,163.19,0.71]
[1754448283947,8.47435087,163.23,163.19,43.55]
[1754448284147,8.47435087,163.2,163.19,43.55]
[1754448284864,8.47435087,163.2,163.17,0.71]
[1754448285069,8.47435087,163.18,163.17,42.84]
[1754448285769,8.47435087,163.19,163.17,49.67857755]
[1754448285953,8.47435087,163.19,163.18,0.71]
[1754448287565,8.47435087,163.2,163.18,0.71]
[1754448288492,8.47435087,163.19,163.17,42.84]
[1754448288691,8.47435087,163.18,163.17,42.84]
[1754448289292,9.13435087,163.18,163.17,42.84]
[1754448290081,15.26255285,163.18,163.17,42.84]
[1754448291184,9.13435087,163.18,163.17,42.84]
[1754448291408,15.26255285,163.18,163.17,42.84]
[1754448291550,15.26255285,163.18,163.15,0.06]
[1754448291750,8.47435087,163.16,163.15,0.06]
[1754448293961,9.13435087,163.16,163.15,0.06]
[1754448295172,15.26330404,163.16,163.15,0.06]
[1754448296381,9.13435087,163.16,163.15,0.06]
[1754448297286,15.26330404,163.16,163.15,0.06]
[1754448300284,56.36951961,163.16,163.15,0.06]
[1754448300584,26.0,163.13,163.09,0.06]
[1754448300896,8.47435087,163.1,163.09,0.06]
[1754448302273,14.60555871,163.1,163.09,0.06]
[1754448302478,15.26555871,163.1,163.09,0.06]
[1754448302885,23.73990958,163.1,163.09,0.06]
[1754448303882,38.84612515,163.1,163.09,0.06]
[1754448305002,15.26555871,163.1,163.09,0.06]
[1754448305213,14.60555871,163.1,163.09,0.06]
[1754448306200,23.74990958,163.1,163.09,0.06]
[1754448306377,38.85612515,163.1,163.09,0.06]
[1754448306696,26.0,163.08,163.07,0.06]
[1754448306871,34.47435087,163.08,163.07,0.06]
[1754448307298,35.14435087,163.08,163.07,0.06]
[1754448308714,41.27631064,163.08,163.07,0.06]
[1754448309773,56.38252621,163.08,163.07,0.06]
[1754448311382,0.14216157,163.07,163.05,0.06]
[1754448311688,67.31272801,163.06,163.05,0.06]
[1754448312598,41.10621557,163.04,163.03,0.06]
[1754448312802,47.23967975,163.04,163.03,0.06]
[1754448313696,55.71403062,163.04,163.03,0.06]
[1754448313899,34.47435087,163.04,163.03,0.06]
[1754448314474,26.0,163.04,163.03,0.77]
[1754448314682,8.47435087,163.04,163.03,0.77]
[1754448315917,32.13248002,163.07,163.03,0.77]
[1754448315918,8.47435087,163.06,163.03,6.90384039]
[1754448316119,8.47435087,163.06,163.04,0.71]
[1754448316893,8.47435087,163.05,163.04,0.71]
[1754448317621,8.47435087,163.06,163.04,0.71]
[1754448317915,8.47435087,163.06,163.05,0.71]
[1754448318599,8.47435087,163.08,163.05,0.71]
[1754448319013,8.47435087,163.08,163.05,6.84280376]
[1754448319213,8.47435087,163.07,163.06,0.71]
[1754448321323,9.14435087,163.07,163.03,0.06]
[1754448321623,8.47435087,163.05,163.03,0.77]
[1754448321802,8.47435087,163.06,163.03,6.90376858]
[1754448322126,8.47435087,163.06,163.04,0.71]
[1754448322428,8.47435087,163.06,163.03,6.19376858]
[1754448322725,8.47435087,163.06,163.03,6.90376858]
[1754448323521,8.47435087,163.07,163.04,0.71]
[1754448323716,12.55177154,163.08,163.04,0.71]
[1754448324808,8.47435087,163.07,163.04,6.84325645]
[1754448325014,8.47435087,163.07,163.05,0.71]
[1754448325217,8.47435087,163.07,163.06,0.71]
[1754448325992,8.47435087,163.07,163.04,6.84325645]
[1754448326194,8.47435087,163.05,163.03,0.06]
[1754448328319,8.47435087,163.04,163.03,0.06]
[1754448329222,4.07742067,163.04,163.03,0.06]
[1754448329409,8.47435087,163.05,163.03,0.06]
[1754448329614,8.47435087,163.04,163.03,0.06]
[1754448330312,9.14435087,163.04,163.03,0.06]
[1754448330506,13.22177154,163.04,163.03,0.06]
[1754448330906,19.35523572,163.04,163.03,0.06]
[1754448331327,13.22177154,163.04,163.03,0.06]
[1754448332222,12.55177154,163.04,163.03,0.06]
[1754448332930,4.07742067,163.05,163.03,0.77]
[1754448333142,4.07742067,163.04,163.03,9.24435087]
[1754448333313,4.07742067,163.06,163.04,0.71]
[1754448333509,4.07742067,163.05,163.03,0.06]
[1754448333715,4.07742067,163.07,163.03,0.06]
[1754448333914,4.07742067,163.06,163.03,0.06]
[1754448334113,8.50435087,163.08,163.04,0.66]
[1754448334114,4.07742067,163.05,163.04,0.66]
[1754448334437,4.07742067,163.07,163.05,0.66]
[1754448334739,4.07742067,163.06,163.05,0.66]
[1754448335731,4.07742067,163.07,163.05,0.66]
[1754448335936,4.07742067,163.06,163.05,0.66]
[1754448336125,12.55177154,163.07,163.05,0.66]
[1754448336310,4.07742067,163.06,163.05,6.793088]
[1754448337141,4.07742067,163.06,163.05,6.133088]
[1754448337512,4.07742067,163.06,163.05,6.793088]
[1754448337730,0.03,163.08,163.05,15.26743887]
[1754448337932,0.03,163.08,163.07,8.47435087]
[1754448338254,4.11019476,163.1,163.08,6.13195977]
[1754448338437,4.11019476,163.13,163.09,9.13435087]
[1754448338644,4.11019476,163.12,163.1,52.07435087]
[1754448338963,4.11019476,163.11,163.1,42.94]
[1754448339723,12.58454563,163.11,163.07,42.94]
[1754448339935,8.47435087,163.09,163.07,42.94]
[1754448340132,8.47435087,163.08,163.07,42.94]
[1754448340334,12.58454563,163.08,163.07,42.94]
[1754448340847,4.79019476,163.08,163.04,42.96]
[1754448341054,4.79019476,163.08,163.04,43.62]
[1754448341055,4.11019476,163.07,163.04,43.62]
[1754448341354,4.11019476,163.06,163.04,43.62]
[1754448341568,4.11019476,163.05,163.04,49.75344512]
[1754448341863,4.11019476,163.07,163.04,49.75344512]
[1754448342041,4.11019476,163.06,163.04,49.75344512]
[1754448342352,4.11992115,163.06,163.05,0.66]
[1754448342530,8.47435087,163.08,163.05,0.66]
[1754448342727,4.11992115,163.07,163.06,0.66]
[1754448343741,12.59427202,163.07,163.04,49.09344512]
[1754448343934,4.11992115,163.06,163.04,49.75344512]
[1754448344138,4.11992115,163.05,163.04,43.62]
[1754448344353,4.11992115,163.05,163.04,42.96]
[1754448344930,12.59427202,163.05,163.04,42.96]
[1754448345135,12.59427202,163.05,163.03,0.06]
[1754448345136,13.27427202,163.05,163.03,0.06]
[1754448345336,12.59427202,163.04,163.03,0.06]
[1754448345840,13.27427202,163.04,163.03,0.06]
[1754448348341,19.4077362,163.04,163.03,0.06]
[1754448348654,13.27427202,163.04,163.03,0.06]
[1754448350055,12.59427202,163.04,163.03,0.06]
[1754448351546,4.11992115,163.04,163.03,0.72]
[1754448352048,4.11992115,163.07,163.03,9.19435087]
[1754448352242,26.0,163.08,163.04,43.64]
[1754448352243,4.11992115,163.06,163.04,43.64]
[1754448352448,4.11992115,163.05,163.04,42.98]
[1754448353047,26.0,163.08,163.04,42.98]
[1754448353048,4.11992115,163.07,163.05,6.133088]
[1754448353357,26.0,163.08,163.04,42.98]
[1754448353358,4.11992115,163.06,163.04,42.98]
[1754448353536,4.11992115,163.05,163.04,42.98]
[1754448353954,13.27427202,163.05,163.03,0.06]
[1754448354154,12.59427202,163.04,163.03,0.06]
[1754448354561,13.27427202,163.04,163.03,0.06]
[1754448355452,12.59427202,163.04,163.03,0.06]
[1754448356573,18.7277362,163.04,163.03,0.06]
[1754448356778,41.10621557,163.02,163.01,0.06]
[1754448356938,15.10621557,163.01,163.0,0.06]
[1754448357139,36.99700003,163.01,163.0,0.06]
[1754448357365,41.10621557,162.99,162.98,0.2]
[1754448357574,58.85769082,162.99,162.98,0.2]
[1754448357740,59.53769082,162.99,162.98,0.2]
[1754448358871,64.63285711,162.99,162.98,0.2]
[1754448359171,59.47565388,162.99,162.98,0.2]
[1754448359370,70.76820283,162.99,162.98,0.2]
[1754448360141,75.35189786,162.99,162.98,0.2]
[1754448361456,70.19469463,162.99,162.98,0.2]
[1754448362077,70.19450183,162.99,162.98,0.2]
[1754448363144,70.19168989,162.99,162.98,0.2]
[1754448363343,55.94217273,162.99,162.98,0.2]
[1754448363545,69.51168989,162.99,162.98,0.2]
[1754448363745,48.2701286,162.99,162.98,0.2]
[1754448363966,34.70061144,162.99,162.98,0.2]
[1754448364173,8.70061144,162.99,162.98,0.9]
[1754448364349,4.58069029,162.99,162.98,0.9]
[1754448365459,8.69543639,162.99,162.98,0.2]
[1754448365654,22.97495355,162.99,162.98,0.2]
[1754448366062,70.21651484,162.99,162.98,0.2]
[1754448366554,113.21651484,162.99,162.98,0.2]
[1754448367979,113.20968863,162.99,162.98,0.2]
[1754448368864,106.36434291,162.99,162.98,0.2]
[1754448369067,48.25812734,162.99,162.98,0.2]
[1754448369588,48.25812734,162.99,162.98,0.9]
[1754448370279,8.68861018,162.99,162.98,0.9]
[1754448370494,4.57386408,162.99,162.98,0.9]
[1754448370985,4.57046571,162.99,162.98,0.9]
[1754448371366,4.11097348,163.0,162.98,0.9]
[1754448371568,4.57024912,162.99,162.98,0.9]
[1754448372764,8.68098202,162.99,162.98,0.2]
[1754448373892,8.68098202,162.99,162.98,0.9]
[1754448376865,8.67929542,162.99,162.98,0.9]
[1754448377967,8.67929542,162.99,162.98,0.2]
[1754448378169,22.95772986,162.99,162.98,0.2]
[1754448378375,44.19929115,162.99,162.98,0.2]
[1754448378886,39.11017036,162.99,162.98,0.2]
[1754448379762,39.10953828,162.99,162.98,0.2]
[1754448379962,17.15797699,162.99,162.98,0.2]
[1754448382866,8.67758062,162.99,162.98,0.9]
[1754448383790,4.56793044,162.99,162.98,0.9]
[1754448384708,4.57213634,162.99,162.98,0.9]
[1754448385282,8.68178652,162.99,162.98,0.9]
[1754448385597,13.76253271,162.99,162.98,0.2]
[1754448385789,17.87218289,162.99,162.98,0.2]
[1754448386304,17.16218289,162.99,162.98,0.2]
[1754448386978,8.68178652,162.99,162.98,0.2]
[1754448388596,17.16218289,162.99,162.98,0.2]
[1754448388913,17.1681517,162.99,162.98,0.2]
[1754448390985,8.68775533,162.99,162.98,0.9]
[1754448391822,17.1681517,162.99,162.98,0.2]
[1754448392003,17.8781517,162.99,162.98,0.2]
[1754448392514,24.01349742,162.99,162.98,0.2]
[1754448393030,87.37907779,162.99,162.98,0.2]
[1754448393202,0.14216157,162.98,162.97,0.06]
[1754448393399,59.12652884,162.98,162.97,0.06]
[1754448393919,26.0,162.94,162.91,0.06]
[1754448394216,8.48039637,162.92,162.91,0.06]
[1754448394420,17.1681517,162.92,162.91,0.06]
[1754448394604,17.87306545,162.92,162.91,0.06]
[1754448394811,38.13479995,162.92,162.91,0.06]
[1754448395116,32.97928102,162.92,162.91,0.06]
[1754448395311,38.1319513,162.92,162.91,0.06]
[1754448395504,32.97928102,162.92,162.91,0.06]
[1754448395912,44.26993313,162.92,162.91,0.06]
[1754448396713,38.1319513,162.92,162.91,0.06]
[1754448397023,17.17306545,162.92,162.91,0.06]
[1754448397227,23.02573573,162.92,162.91,0.06]
[1754448397719,23.02163636,162.92,162.91,0.06]
[1754448397909,17.16896608,162.92,162.91,0.06]
[1754448399505,17.86896608,162.92,162.91,0.06]
[1754448399920,39.11316348,162.92,162.91,0.06]
[1754448400399,44.26583376,162.92,162.91,0.06]
[1754448400597,70.40759351,162.92,162.91,0.06]
[1754448400942,39.25492323,162.92,162.91,0.06]
[1754448401138,46.14254979,162.92,162.91,0.06]
[1754448401345,39.25492323,162.92,162.91,0.06]
[1754448401827,32.27477983,162.92,162.91,0.06]
[1754448402034,38.41276166,162.92,162.91,0.06]
[1754448402214,58.27477983,162.92,162.91,0.06]
[1754448402532,43.16856426,162.92,162.91,0.06]
[1754448403520,43.1644818,162.92,162.91,0.06]
[1754448403722,43.8644818,162.92,162.91,0.06]
[1754448403919,43.1644818,162.92,162.91,0.06]
[1754448406432,43.16254997,162.92,162.91,0.06]
[1754448408528,34.6821536,162.92,162.91,0.06]
[1754448408726,34.6821536,162.92,162.91,0.76]
[1754448409520,30.10965018,162.92,162.91,0.76]
[1754448410317,4.10965018,162.92,162.91,0.76]
[1754448410518,4.10965018,162.94,162.91,6.89812531]
[1754448410836,4.10965018,162.94,162.92,0.7]
[1754448411208,4.10965018,162.94,162.93,0.7]
[1754448415543,26.0,162.98,162.93,15.31800147]
[1754448415748,4.11190469,162.97,162.94,9.18039637]
[1754448415916,4.11190469,162.97,162.94,8.48039637]
[1754448416119,26.0,162.96,162.95,0.7]
[1754448416323,30.11190469,162.96,162.95,0.7]
[1754448417280,30.11190469,162.96,162.93,6.8376051]
[1754448417553,4.11190469,162.95,162.93,6.8376051]
[1754448418041,4.11190469,162.95,162.94,0.7]
[1754448418238,0.7,162.94,162.91,6.19810325]
[1754448418438,0.7,162.94,162.91,14.67849962]
[1754448418621,9.18039637,162.94,162.91,0.06]
[1754448418827,9.18039637,162.93,162.91,0.06]
[1754448419035,13.29230106,162.93,162.91,0.06]
[1754448419335,4.11190469,162.92,162.91,0.06]
[1754448419532,4.11190469,162.93,162.91,0.06]
[1754448420247,12.59230106,162.93,162.91,0.06]
[1754448420424,4.11190469,162.92,162.91,0.76]
[1754448420747,12.59230106,162.93,162.91,0.06]
[1754448420947,8.48039637,162.92,162.91,0.06]
[1754448421171,13.29230106,162.92,162.91,0.06]
[1754448421372,13.29563903,162.92,162.91,0.06]
[1754448422485,30.11524266,162.92,162.91,0.76]
[1754448423257,62.72083471,162.97,162.91,15.37875497]
[1754448423456,26.0,162.94,162.91,15.37875497]
[1754448423784,4.11570495,162.93,162.91,15.37875497]
[1754448423954,26.0,162.94,162.92,0.66]
[1754448424156,51.44039637,162.97,162.92,9.14039637]
[1754448424487,4.11584413,162.96,162.93,9.14039637]
[1754448424790,4.11584413,162.95,162.94,0.66]
[1754448424951,12.5962405,162.97,162.94,0.66]
[1754448425145,4.11584413,162.96,162.94,0.66]
[1754448425347,4.11584413,162.95,162.94,0.66]
[1754448425570,4.11584413,162.96,162.94,0.66]
[1754448425758,4.11584413,162.95,162.94,0.66]
[1754448425960,4.11584413,162.96,162.94,0.66]
[1754448426167,4.11584413,162.95,162.94,6.13722842]
[1754448426379,4.11584413,162.97,162.94,14.61762479]
[1754448426579,4.11584413,162.96,162.95,8.48039637]
[1754448426784,4.11584413,162.97,162.95,9.14039637]
[1754448426958,4.11584413,162.96,162.95,0.66]
[1754448427279,4.11584413,162.97,162.95,0.66]
[1754448428695,4.11584413,162.96,162.94,8.48039637]
[1754448428889,4.11584413,162.97,162.94,9.14039637]
[1754448429273,4.11584413,162.96,162.94,9.14039637]
[1754448429587,4.11745914,162.97,162.94,9.14039637]
[1754448429789,4.71745914,162.96,162.92,15.27826813]
[1754448430084,4.11745914,162.95,162.93,9.14039637]
[1754448430289,4.11745914,162.96,162.94,0.66]
[1754448430495,4.11745914,162.95,162.94,0.66]
[1754448430694,4.11745914,162.97,162.94,0.66]
[1754448430995,4.11745914,162.96,162.94,0.66]
[1754448431198,4.11745914,162.95,162.94,0.66]
[1754448431488,4.11745914,162.97,162.94,0.66]
[1754448431687,4.11745914,162.96,162.94,0.66]
[1754448431893,4.11745914,162.95,162.94,0.66]
[1754448432079,4.11745914,162.96,162.94,9.14039637]
[1754448432266,4.11745914,162.97,162.94,9.14039637]
[1754448432461,4.11745914,162.96,162.94,9.14039637]
[1754448432711,0.71,162.95,162.92,6.13784725]
[1754448432897,8.48039637,162.93,162.91,0.06]
[1754448433096,4.11745914,162.92,162.91,0.06]
[1754448433283,4.82745914,162.92,162.91,0.06]
[1754448433608,13.30785551,162.92,162.91,0.06]
[1754448434018,19.44583734,162.92,162.91,0.06]
[1754448435109,30.11745914,162.92,162.91,0.06]
[1754448435280,30.11745914,162.92,162.91,0.72]
[1754448435691,5.14682392,162.97,162.91,9.20039637]
[1754448435876,4.12320423,162.96,162.95,8.48039637]
[1754448436084,4.12320423,162.96,162.95,9.14039637]
[1754448436788,4.12320423,162.96,162.95,14.22133856]
[1754448437385,4.12320423,162.96,162.95,0.66]
[1754448437585,4.12320423,162.96,162.94,19.69820437]
[1754448437806,4.12320423,162.95,162.94,20.35820437]
[1754448438592,4.12320423,162.97,162.94,20.35820437]
[1754448438922,4.12320423,162.97,162.96,13.56133856]
[1754448439097,0.03,162.98,162.96,20.35781376]
[1754448439301,4.15331062,162.98,162.97,14.22133856]
[1754448439704,4.15331062,162.98,162.97,13.56133856]
[1754448440424,0.03,162.98,162.97,14.22133856]
[1754448440606,4.15331062,162.98,162.97,13.56133856]
[1754448440807,4.15331062,162.98,162.96,19.69781376]
[1754448440995,4.12331062,162.97,162.96,13.56133856]
[1754448441624,4.83331062,162.97,162.95,13.56133856]
[1754448441829,4.12331062,162.96,162.95,13.56133856]
[1754448442028,4.12331062,162.97,162.95,13.56133856]
[1754448442622,4.12331062,162.97,162.96,14.22133856]
[1754448443522,4.15331062,162.98,162.96,14.22133856]
[1754448443731,4.15331062,162.98,162.97,13.56133856]
[1754448444026,0.03,162.98,162.97,14.22133856]
[1754448444605,0.03,162.99,162.97,57.18133856]
[1754448444808,0.03,162.99,162.98,14.22133856]
[1754448445303,0.03,162.99,162.98,20.35706073]
[1754448445717,0.03,162.99,162.97,56.52133856]
[1754448445900,0.03,162.99,162.97,42.96]
[1754448446305,4.15331062,162.99,162.97,42.96]
[1754448448431,4.15331062,162.99,162.97,63.31738569]
[1754448448627,4.15331062,162.99,162.98,0.66]
[1754448448927,0.03,162.99,162.98,14.22133856]
[1754448449520,0.03,162.99,162.97,49.09604713]
[1754448449723,0.03,162.99,162.98,13.56133856]
[1754448450036,0.03,162.99,162.97,62.65738569]
[1754448450826,0.03,162.99,162.98,13.56133856]
[1754448451240,0.03,162.99,162.97,49.75604713]
[1754448451435,0.03,162.99,162.98,13.56133856]
[1754448451614,0.03,162.99,162.98,14.22133856]
[1754448452838,0.03,162.99,162.98,20.35706073]
[1754448454450,0.03,162.99,162.98,19.69706073]
[1754448454952,0.03,162.99,162.98,13.56133856]
[1754448455151,0.03,162.99,162.98,20.35706073]
[1754448460756,0.03,162.99,162.98,15.26679835]
[1754448461070,0.03,162.99,162.98,104.36679835]
[1754448462834,0.03,162.99,162.98,104.50895992]
[1754448463050,0.03,162.99,162.98,138.29572217]
[1754448463352,0.74,162.99,162.98,132.16]
[1754448463934,0.03,162.99,162.98,138.29572217]
[1754448465638,0.74,162.99,162.96,6.13643672]
[1754448465855,0.74,162.99,162.97,43.08]
[1754448466866,0.03,162.99,162.97,43.08]
[1754448467164,9.21107618,162.99,162.97,43.08]
[1754448467341,13.3343868,162.99,162.97,43.08]
[1754448467854,4.86331062,162.99,162.97,43.08]
[1754448469570,4.86331062,162.99,162.97,49.21608142]
[1754448469966,4.86331062,162.99,162.97,43.08]
[1754448470470,13.3343868,162.99,162.97,43.08]
[1754448470770,8.47107618,162.98,162.97,43.08]
[1754448470955,4.12331062,162.98,162.97,43.08]
[1754448471156,4.12331062,162.98,162.97,43.14]
[1754448473272,13.3043868,162.98,162.97,0.06]
[1754448473676,39.69314846,162.98,162.97,0.06]
[1754448474878,34.54632454,162.98,162.97,0.06]
[1754448476789,39.69314846,162.98,162.97,0.06]
[1754448477473,26.0,162.96,162.95,0.06]
[1754448477777,43.74603457,162.96,162.95,0.06]
[1754448478079,59.70441171,162.96,162.95,0.06]
[1754448478980,65.84088691,162.96,162.95,0.06]
[1754448479183,39.3043868,162.96,162.95,0.06]
[1754448479365,43.74603457,162.96,162.95,0.06]
[1754448479671,38.5943868,162.96,162.95,0.06]
[1754448479882,39.3043868,162.96,162.95,0.06]
[1754448480257,44.45603457,162.96,162.95,0.06]
[1754448480777,45.440862,162.96,162.95,0.06]
[1754448481291,50.59505586,162.96,162.95,0.06]
[1754448481479,60.68923914,162.96,162.95,0.06]
[1754448481679,15.10621557,162.95,162.94,0.06]
[1754448481884,28.41060237,162.95,162.94,0.06]
[1754448482380,33.56323053,162.95,162.94,0.06]
[1754448482568,28.41060237,162.95,162.94,0.06]
[1754448482764,71.59276394,162.95,162.94,0.06]
[1754448483489,56.3443868,162.95,162.94,0.06]
[1754448483676,38.5943868,162.95,162.94,0.06]
[1754448483870,44.46502708,162.95,162.94,0.06]
[1754448484075,0.14216157,162.94,162.93,0.06]
[1754448484273,13.45654837,162.94,162.93,0.06]
[1754448485073,18.6044083,162.94,162.93,0.06]
[1754448485274,13.45654837,162.94,162.93,0.06]
[1754448485471,24.74163672,162.94,162.93,0.06]
[1754448485676,19.59377679,162.94,162.93,0.06]
[1754448485892,59.83783079,162.94,162.93,0.06]
[1754448487287,60.55783079,162.94,162.93,0.06]
[1754448488102,41.0525218,162.94,162.93,0.06]
[1754448488396,54.42060237,162.94,162.93,0.06]
[1754448488592,60.55783079,162.94,162.93,0.06]
[1754448489374,45.22952619,162.94,162.93,0.06]
[1754448489581,30.12331062,162.94,162.93,0.06]
[1754448489906,38.5943868,162.94,162.93,0.06]
[1754448490900,4.12331062,162.94,162.93,0.73]
[1754448491306,8.47107618,162.94,162.93,0.73]
[1754448491512,8.47107618,162.94,162.93,0.06]
[1754448492099,12.5943868,162.94,162.93,0.06]
[1754448492895,12.5943868,162.94,162.93,0.73]
[1754448493094,8.47107618,162.94,162.93,0.73]
[1754448493517,8.47107618,162.94,162.93,0.06]
[1754448493890,4.12331062,162.95,162.93,0.73]
[1754448494090,8.47107618,162.94,162.93,0.06]
[1754448495318,34.55783079,162.94,162.93,0.06]
[1754448497313,12.5943868,162.94,162.93,0.06]
[1754448498123,4.12331062,162.94,162.93,0.73]
[1754448498296,4.12331062,162.95,162.93,9.20107618]
[1754448498497,26.03,162.96,162.94,0.67]
[1754448498702,26.03,162.96,162.93,0.06]